[Event "*** Titled Tuesday Blitz"]
[Site "Chess.com"]
[Date "2020.10.27"]
[Round "6"]
[White "Kazmin_Dmitrij"]
[Black "azikom"]
[Result "1-0"]
[WhiteElo "2277"]
[BlackElo "2556"]
[TimeControl "180+1"]
[EndTime "11:07:44 PDT"]
[Termination "Kazmin_Dmitrij won on time"]

1. e4 {[%clk 0:03:00.9]} 1... c5 {[%clk 0:02:57.6]} 2. f4 {[%clk 0:02:56]} 2...
e6 {[%clk 0:02:56.7]} 3. Nf3 {[%clk 0:02:51.9]} 3... d5 {[%clk 0:02:52.6]} 4.
Bb5+ {[%clk 0:02:51.4]} 4... Nc6 {[%clk 0:02:45.1]} 5. Qe2 {[%clk 0:02:38.2]}
5... Nf6 {[%clk 0:02:39.7]} 6. e5 {[%clk 0:02:25.5]} 6... Nd7 {[%clk 0:02:36.6]}
7. O-O {[%clk 0:02:15.4]} 7... Be7 {[%clk 0:02:32.8]} 8. c3 {[%clk 0:02:14.3]}
8... Qb6 {[%clk 0:02:20.9]} 9. Bxc6 {[%clk 0:01:39.1]} 9... bxc6 {[%clk
0:02:15.6]} 10. d4 {[%clk 0:01:36.5]} 10... Ba6 {[%clk 0:01:09.8]} 11. Qf2
{[%clk 0:01:36.1]} 11... Bxf1 {[%clk 0:01:04.5]} 12. Qxf1 {[%clk 0:01:36.4]}
12... cxd4 {[%clk 0:01:02.6]} 13. cxd4 {[%clk 0:01:35.8]} 13... c5 {[%clk
0:01:02.3]} 14. dxc5 {[%clk 0:01:11.4]} 14... Bxc5+ {[%clk 0:00:56.7]} 15. Kh1
{[%clk 0:01:11.3]} 15... O-O {[%clk 0:00:55.9]} 16. Nc3 {[%clk 0:01:11.1]} 16...
Rfc8 {[%clk 0:00:50.6]} 17. Qd3 {[%clk 0:01:02.3]} 17... Be7 {[%clk 0:00:47.2]}
18. Rb1 {[%clk 0:00:53.3]} 18... Qb4 {[%clk 0:00:46.1]} 19. Be3 {[%clk
0:00:41.6]} 19... Nc5 {[%clk 0:00:44.6]} 20. Qd2 {[%clk 0:00:39.1]} 20... Ne4
{[%clk 0:00:42.5]} 21. Nxe4 {[%clk 0:00:38.6]} 21... Qxe4 {[%clk 0:00:38.9]} 22.
Re1 {[%clk 0:00:38.5]} 22... Rc2 {[%clk 0:00:37.4]} 23. Qd4 {[%clk 0:00:29.2]}
23... Qxd4 {[%clk 0:00:31.8]} 24. Bxd4 {[%clk 0:00:29.2]} 24... a5 {[%clk
0:00:29.8]} 25. a3 {[%clk 0:00:26.4]} 25... Rac8 {[%clk 0:00:29.2]} 26. Bc3
{[%clk 0:00:18.3]} 26... a4 {[%clk 0:00:28.4]} 27. Nd4 {[%clk 0:00:17.5]} 27...
R2xc3 {[%clk 0:00:25]} 28. bxc3 {[%clk 0:00:17.2]} 28... Rxc3 {[%clk 0:00:20.5]}
29. Rb1 {[%clk 0:00:16.3]} 29... g6 {[%clk 0:00:18.9]} 30. Nb5 {[%clk 0:00:15]}
30... Rb3 {[%clk 0:00:17]} 31. Rxb3 {[%clk 0:00:13.4]} 31... axb3 {[%clk
0:00:17]} 32. Nc3 {[%clk 0:00:07]} 32... Bxa3 {[%clk 0:00:15.3]} 33. Nb1 {[%clk
0:00:07.6]} 33... Bb4 {[%clk 0:00:14.7]} 34. Kg1 {[%clk 0:00:06.5]} 34... d4
{[%clk 0:00:12.3]} 35. Kf2 {[%clk 0:00:06.4]} 35... d3 {[%clk 0:00:11.6]} 36.
Ke3 {[%clk 0:00:05.7]} 36... d2 {[%clk 0:00:10.9]} 37. Ke2 {[%clk 0:00:05.9]}
37... Kf8 {[%clk 0:00:09.8]} 38. Nxd2 {[%clk 0:00:05.8]} 38... Bxd2 {[%clk
0:00:06]} 39. Kxd2 {[%clk 0:00:06.1]} 39... Ke7 {[%clk 0:00:03.5]} 40. Kc3
{[%clk 0:00:06.3]} 40... Kd7 {[%clk 0:00:01.7]} 41. Kxb3 {[%clk 0:00:06.5]}
41... Kc6 {[%clk 0:00:01.3]} 42. Kc4 {[%clk 0:00:06.7]} 1-0

[Event "*** Titled Tuesday Blitz"]
[Site "Chess.com"]
[Date "2020.10.27"]
[Round "6"]
[White "AntonovaNadezhda"]
[Black "levallem"]
[Result "1-0"]
[WhiteElo "2132"]
[BlackElo "2286"]
[TimeControl "180+1"]
[EndTime "11:07:46 PDT"]
[Termination "AntonovaNadezhda won by resignation"]

1. d4 {[%clk 0:03:00.9]} 1... Nf6 {[%clk 0:02:59.1]} 2. Nf3 {[%clk 0:03:01.3]}
2... g6 {[%clk 0:02:59]} 3. Nbd2 {[%clk 0:03:00.1]} 3... Bg7 {[%clk 0:02:58.9]}
4. e4 {[%clk 0:03:00.6]} 4... d5 {[%clk 0:02:59.5]} 5. e5 {[%clk 0:02:59.2]}
5... Ng8 {[%clk 0:02:55.9]} 6. Bd3 {[%clk 0:02:55.8]} 6... e6 {[%clk 0:02:54.8]}
7. O-O {[%clk 0:02:50.4]} 7... Ne7 {[%clk 0:02:54.1]} 8. c3 {[%clk 0:02:48]}
8... O-O {[%clk 0:02:53.4]} 9. h4 {[%clk 0:02:43.3]} 9... h5 {[%clk 0:02:45.7]}
10. Ng5 {[%clk 0:02:34.9]} 10... Nf5 {[%clk 0:02:44.5]} 11. g3 {[%clk
0:02:34.4]} 11... b6 {[%clk 0:02:38.7]} 12. Qe2 {[%clk 0:02:31.5]} 12... a5
{[%clk 0:02:33.4]} 13. Bxf5 {[%clk 0:02:20.8]} 13... exf5 {[%clk 0:02:30.3]} 14.
Re1 {[%clk 0:02:17.5]} 14... Be6 {[%clk 0:02:25.9]} 15. Nf1 {[%clk 0:02:11.8]}
15... Nd7 {[%clk 0:02:21]} 16. Ne3 {[%clk 0:02:10.2]} 16... Re8 {[%clk
0:02:16.1]} 17. Ng2 {[%clk 0:02:09.3]} 17... c5 {[%clk 0:02:04.3]} 18. Nf4
{[%clk 0:02:04.1]} 18... Nf8 {[%clk 0:01:57.9]} 19. Be3 {[%clk 0:01:53.6]} 19...
c4 {[%clk 0:01:56.9]} 20. b3 {[%clk 0:01:47.2]} 20... b5 {[%clk 0:01:54.9]} 21.
bxc4 {[%clk 0:01:46.2]} 21... bxc4 {[%clk 0:01:55.8]} 22. Rab1 {[%clk
0:01:45.5]} 22... Rb8 {[%clk 0:01:54.4]} 23. Qc2 {[%clk 0:01:40.4]} 23... Qd7
{[%clk 0:01:53.4]} 24. Rb2 {[%clk 0:01:25.4]} 24... Qc7 {[%clk 0:01:26.9]} 25.
Reb1 {[%clk 0:01:24.7]} 25... Bh6 {[%clk 0:01:21.5]} 26. a4 {[%clk 0:01:10.9]}
26... Bxg5 {[%clk 0:01:19.8]} 27. hxg5 {[%clk 0:01:10.4]} 27... Nd7 {[%clk
0:01:11.3]} 28. Rb5 {[%clk 0:01:08.7]} 28... Rxb5 {[%clk 0:00:27.8]} 29. Rxb5
{[%clk 0:01:06.9]} 29... Rb8 {[%clk 0:00:25.9]} 30. Nxd5 {[%clk 0:00:53.5]}
30... Bxd5 {[%clk 0:00:26.8]} 31. Rxd5 {[%clk 0:00:52.9]} 31... Nf8 {[%clk
0:00:19.3]} 32. Rb5 {[%clk 0:00:49.2]} 32... Ne6 {[%clk 0:00:16.9]} 33. d5
{[%clk 0:00:44.5]} 33... Nd8 {[%clk 0:00:13.1]} 34. d6 {[%clk 0:00:38.9]} 34...
Qc8 {[%clk 0:00:11]} 35. Qb2 {[%clk 0:00:33.1]} 35... Rxb5 {[%clk 0:00:10.1]}
36. Qxb5 {[%clk 0:00:32.8]} 36... Ne6 {[%clk 0:00:10]} 37. f4 {[%clk 0:00:29.7]}
37... Kg7 {[%clk 0:00:09.4]} 38. Qxa5 {[%clk 0:00:27.2]} 38... Qb7 {[%clk
0:00:08.6]} 39. Qb6 {[%clk 0:00:23]} 39... Qf3 {[%clk 0:00:06.2]} 40. Bf2 {[%clk
0:00:22.8]} 40... Qd1+ {[%clk 0:00:06.1]} 41. Kg2 {[%clk 0:00:22]} 41... Qd5+
{[%clk 0:00:06.6]} 42. Kf1 {[%clk 0:00:20.2]} 42... Qd1+ {[%clk 0:00:07]} 43.
Be1 {[%clk 0:00:19.6]} 43... Qf3+ {[%clk 0:00:07.2]} 44. Qf2 {[%clk 0:00:19.9]}
44... Qd3+ {[%clk 0:00:07.4]} 45. Qe2 {[%clk 0:00:18.9]} 45... Qd5 {[%clk
0:00:07.5]} 46. Qe3 {[%clk 0:00:17.1]} 46... Nc5 {[%clk 0:00:07.2]} 47. Ke2
{[%clk 0:00:16.6]} 47... Nxa4 {[%clk 0:00:05.8]} 48. Bf2 {[%clk 0:00:14.1]}
48... Nb2 {[%clk 0:00:05]} 49. Qd4 {[%clk 0:00:13.6]} 49... Qg2 {[%clk
0:00:03.5]} 50. e6+ {[%clk 0:00:12.8]} 50... Kf8 {[%clk 0:00:02.4]} 51. e7+
{[%clk 0:00:12.2]} 51... Ke8 {[%clk 0:00:02.6]} 52. d7+ {[%clk 0:00:12.5]} 52...
Kxe7 {[%clk 0:00:02]} 53. d8=Q+ {[%clk 0:00:12.6]} 53... Ke6 {[%clk 0:00:02.9]}
1-0

[Event "*** Titled Tuesday Blitz"]
[Site "Chess.com"]
[Date "2020.10.27"]
[Round "6"]
[White "Th3_Hound"]
[Black "Sankalp_Gupta2003"]
[Result "0-1"]
[WhiteElo "2501"]
[BlackElo "2709"]
[TimeControl "180+1"]
[EndTime "11:07:51 PDT"]
[Termination "Sankalp_Gupta2003 won by checkmate"]

1. e4 {[%clk 0:03:00.9]} 1... c6 {[%clk 0:02:59.9]} 2. d4 {[%clk 0:03:00.8]}
2... d5 {[%clk 0:03:00.5]} 3. e5 {[%clk 0:03:01.3]} 3... Bf5 {[%clk 0:03:00.4]}
4. Nf3 {[%clk 0:03:01.5]} 4... e6 {[%clk 0:03:00.8]} 5. Be2 {[%clk 0:03:01.2]}
5... Nd7 {[%clk 0:02:58.8]} 6. O-O {[%clk 0:03:00.9]} 6... h6 {[%clk 0:02:58.1]}
7. Nbd2 {[%clk 0:03:00.7]} 7... Ne7 {[%clk 0:02:58.6]} 8. Nb3 {[%clk 0:03:00.6]}
8... Bh7 {[%clk 0:02:56.1]} 9. a4 {[%clk 0:02:57.8]} 9... Nf5 {[%clk 0:02:55.5]}
10. a5 {[%clk 0:02:57.7]} 10... a6 {[%clk 0:02:53.7]} 11. c4 {[%clk 0:02:56.3]}
11... dxc4 {[%clk 0:02:50.5]} 12. Bxc4 {[%clk 0:02:56]} 12... Be7 {[%clk
0:02:51.2]} 13. Qe2 {[%clk 0:02:48.8]} 13... O-O {[%clk 0:02:51.3]} 14. Bd3
{[%clk 0:02:46.5]} 14... c5 {[%clk 0:02:47.3]} 15. dxc5 {[%clk 0:02:42.2]} 15...
Nxc5 {[%clk 0:02:48.2]} 16. Nxc5 {[%clk 0:02:41.9]} 16... Bxc5 {[%clk
0:02:49.1]} 17. Rd1 {[%clk 0:02:39.3]} 17... Qe7 {[%clk 0:02:47.1]} 18. Bd2
{[%clk 0:02:34.8]} 18... Rfd8 {[%clk 0:02:42.9]} 19. Bc3 {[%clk 0:02:33.8]}
19... Rd7 {[%clk 0:02:43.1]} 20. Be4 {[%clk 0:02:33.6]} 20... Rad8 {[%clk
0:02:42.1]} 21. h3 {[%clk 0:02:11.2]} 21... Bg6 {[%clk 0:02:41]} 22. Qc2 {[%clk
0:02:02.5]} 22... Rxd1+ {[%clk 0:02:22.5]} 23. Rxd1 {[%clk 0:02:01.7]} 23...
Rxd1+ {[%clk 0:02:23.4]} 24. Qxd1 {[%clk 0:02:01.3]} 24... Ne3 {[%clk
0:02:24.3]} 25. Qd3 {[%clk 0:01:54]} 25... Bxe4 {[%clk 0:02:22.8]} 26. Qxe4
{[%clk 0:01:54.9]} 26... Nd5 {[%clk 0:02:23.4]} 27. Bd2 {[%clk 0:01:40]} 27...
Qd7 {[%clk 0:02:18.7]} 28. Qg4 {[%clk 0:01:37.2]} 28... Kf8 {[%clk 0:02:10.5]}
29. Qe4 {[%clk 0:01:37.3]} 29... Ne7 {[%clk 0:02:04.3]} 30. b4 {[%clk
0:01:34.8]} 30... Ba7 {[%clk 0:02:03]} 31. Be3 {[%clk 0:01:30.3]} 31... Bxe3
{[%clk 0:01:59.6]} 32. Qxe3 {[%clk 0:01:31.1]} 32... Qb5 {[%clk 0:01:59.9]} 33.
Qe4 {[%clk 0:01:23.5]} 33... g6 {[%clk 0:01:36.1]} 34. Qf4 {[%clk 0:01:11.7]}
34... Ke8 {[%clk 0:01:27.1]} 35. Qxh6 {[%clk 0:01:02.2]} 35... Qxb4 {[%clk
0:01:27.3]} 36. Qh8+ {[%clk 0:01:02.7]} 36... Kd7 {[%clk 0:01:27.2]} 37. Qf8
{[%clk 0:01:02.8]} 37... Qxa5 {[%clk 0:01:21]} 38. Qxf7 {[%clk 0:01:01.5]} 38...
Qc3 {[%clk 0:01:14.5]} 39. Qf6 {[%clk 0:00:53.1]} 39... a5 {[%clk 0:01:10.2]}
40. Ng5 {[%clk 0:00:53.1]} 40... Qc4 {[%clk 0:01:03.9]} 41. Qf7 {[%clk
0:00:38.2]} 41... a4 {[%clk 0:00:59.7]} 42. Nh7 {[%clk 0:00:36.8]} 42... Qb4
{[%clk 0:00:18.1]} 43. Nf8+ {[%clk 0:00:29.8]} 43... Kc7 {[%clk 0:00:18.6]} 44.
Nxe6+ {[%clk 0:00:24.6]} 44... Kb6 {[%clk 0:00:18.5]} 45. Nf4 {[%clk 0:00:21]}
45... a3 {[%clk 0:00:18.7]} 46. g3 {[%clk 0:00:14]} 46... Ka7 {[%clk 0:00:17.3]}
47. Kg2 {[%clk 0:00:08.1]} 47... Nc6 {[%clk 0:00:15.1]} 48. e6 {[%clk
0:00:06.2]} 48... a2 {[%clk 0:00:15.1]} 49. Qf6 {[%clk 0:00:06.4]} 49... Qe4+
{[%clk 0:00:10.2]} 50. Kh2 {[%clk 0:00:06]} 50... Nd4 {[%clk 0:00:10.5]} 51. e7
{[%clk 0:00:05.1]} 51... a1=Q {[%clk 0:00:10.6]} 52. e8=Q {[%clk 0:00:02]} 52...
Qah1# {[%clk 0:00:10.4]} 0-1

[Event "*** Titled Tuesday Blitz"]
[Site "Chess.com"]
[Date "2020.10.27"]
[Round "6"]
[White "LubovMarkelova"]
[Black "TheChessChannel"]
[Result "1-0"]
[WhiteElo "2239"]
[BlackElo "2431"]
[TimeControl "180+1"]
[EndTime "11:07:51 PDT"]
[Termination "LubovMarkelova won on time"]

1. d4 {[%clk 0:03:00.5]} 1... e6 {[%clk 0:03:00.2]} 2. Nf3 {[%clk 0:03:01]} 2...
Nf6 {[%clk 0:03:00.2]} 3. Bf4 {[%clk 0:03:01.1]} 3... Nh5 {[%clk 0:02:59.9]} 4.
Bg5 {[%clk 0:02:57.5]} 4... Be7 {[%clk 0:02:59.7]} 5. Bxe7 {[%clk 0:02:54.6]}
5... Qxe7 {[%clk 0:03:00.6]} 6. e3 {[%clk 0:02:55.2]} 6... f5 {[%clk 0:02:59.9]}
7. c4 {[%clk 0:02:41]} 7... b6 {[%clk 0:02:56]} 8. Nc3 {[%clk 0:02:40.4]} 8...
Bb7 {[%clk 0:02:56]} 9. Be2 {[%clk 0:02:39.1]} 9... Nf6 {[%clk 0:02:56.1]} 10.
O-O {[%clk 0:02:36.8]} 10... O-O {[%clk 0:02:56.1]} 11. d5 {[%clk 0:02:35.8]}
11... a5 {[%clk 0:02:44.6]} 12. Nb5 {[%clk 0:02:27]} 12... Na6 {[%clk
0:02:33.4]} 13. d6 {[%clk 0:02:25.7]} 13... cxd6 {[%clk 0:02:28.7]} 14. Nxd6
{[%clk 0:02:24.6]} 14... Bc6 {[%clk 0:02:19.9]} 15. Ne5 {[%clk 0:02:24.4]} 15...
Rad8 {[%clk 0:01:45.1]} 16. a3 {[%clk 0:01:58.5]} 16... Ne4 {[%clk 0:01:42.1]}
17. Nxe4 {[%clk 0:01:21.9]} 17... Bxe4 {[%clk 0:01:43]} 18. Bf3 {[%clk
0:01:12.9]} 18... Bxf3 {[%clk 0:01:34.4]} 19. Qxf3 {[%clk 0:01:12.7]} 19... Qf6
{[%clk 0:01:28.1]} 20. Nd3 {[%clk 0:01:06.4]} 20... d5 {[%clk 0:01:06.2]} 21.
cxd5 {[%clk 0:01:02]} 21... Rxd5 {[%clk 0:01:06.9]} 22. Nf4 {[%clk 0:00:59.2]}
22... Rd2 {[%clk 0:01:03.9]} 23. Qb7 {[%clk 0:00:52.7]} 23... e5 {[%clk
0:00:25.1]} 24. Nd5 {[%clk 0:00:47]} 24... Qd6 {[%clk 0:00:17.6]} 25. Ne7+
{[%clk 0:00:41.9]} 25... Kh8 {[%clk 0:00:16.8]} 26. Qxa6 {[%clk 0:00:34.4]}
26... Qxe7 {[%clk 0:00:15.6]} 27. Qxb6 {[%clk 0:00:34.1]} 27... f4 {[%clk
0:00:15.9]} 28. exf4 {[%clk 0:00:31.1]} 28... exf4 {[%clk 0:00:15.6]} 29. Rfe1
{[%clk 0:00:28.1]} 29... Qf6 {[%clk 0:00:13.7]} 30. Qxf6 {[%clk 0:00:25.5]}
30... gxf6 {[%clk 0:00:13]} 31. b4 {[%clk 0:00:24.2]} 31... axb4 {[%clk
0:00:12.5]} 32. axb4 {[%clk 0:00:23.9]} 32... Rc8 {[%clk 0:00:08.9]} 33. b5
{[%clk 0:00:09.8]} 33... Rb2 {[%clk 0:00:06]} 34. Rab1 {[%clk 0:00:07.5]} 34...
Rcc2 {[%clk 0:00:05.4]} 35. Rxb2 {[%clk 0:00:06.6]} 35... Rxb2 {[%clk
0:00:06.3]} 36. g3 {[%clk 0:00:07.1]} 36... f3 {[%clk 0:00:05.9]} 37. h4 {[%clk
0:00:06]} 37... Rxb5 {[%clk 0:00:05.9]} 38. Re3 {[%clk 0:00:06]} 38... Rf5
{[%clk 0:00:05.8]} 39. Kh2 {[%clk 0:00:06.3]} 39... Kg7 {[%clk 0:00:06.1]} 40.
Kh3 {[%clk 0:00:06.7]} 40... h5 {[%clk 0:00:05.9]} 41. g4 {[%clk 0:00:07.2]}
41... hxg4+ {[%clk 0:00:04]} 42. Kxg4 {[%clk 0:00:08.1]} 42... Rb5 {[%clk
0:00:03.4]} 43. Rxf3 {[%clk 0:00:08.4]} 43... Kf7 {[%clk 0:00:02.4]} 44. Rf4
{[%clk 0:00:08.2]} 44... Kg7 {[%clk 0:00:02.2]} 45. f3 {[%clk 0:00:08.4]} 45...
Kg6 {[%clk 0:00:02.3]} 46. Kg3 {[%clk 0:00:08.8]} 46... Kg7 {[%clk 0:00:01.8]}
47. Ra4 {[%clk 0:00:08.9]} 47... Kg6 {[%clk 0:00:01.8]} 48. Kg4 {[%clk
0:00:08.5]} 48... Kg7 {[%clk 0:00:02.2]} 49. f4 {[%clk 0:00:08.7]} 49... Kg6
{[%clk 0:00:02.5]} 50. Ra8 {[%clk 0:00:06.4]} 50... Rc5 {[%clk 0:00:01.9]} 51.
Rg8+ {[%clk 0:00:05.8]} 51... Kf7 {[%clk 0:00:02]} 52. Ra8 {[%clk 0:00:06.5]}
52... Kg6 {[%clk 0:00:02.2]} 53. h5+ {[%clk 0:00:06.5]} 53... Kh6 {[%clk
0:00:01.7]} 54. Rh8+ {[%clk 0:00:06.2]} 1-0

[Event "*** Titled Tuesday Blitz"]
[Site "Chess.com"]
[Date "2020.10.27"]
[Round "6"]
[White "Rakesh"]
[Black "MVM2008"]
[Result "1-0"]
[WhiteElo "2453"]
[BlackElo "2233"]
[TimeControl "180+1"]
[EndTime "11:08:02 PDT"]
[Termination "Rakesh won on time"]

1. e4 {[%clk 0:03:00.9]} 1... e5 {[%clk 0:02:59.9]} 2. Nf3 {[%clk 0:02:57.8]}
2... Nc6 {[%clk 0:03:00.2]} 3. d4 {[%clk 0:02:58.1]} 3... exd4 {[%clk
0:02:59.1]} 4. Nxd4 {[%clk 0:02:59]} 4... g6 {[%clk 0:02:59.6]} 5. Nc3 {[%clk
0:02:57.3]} 5... Bg7 {[%clk 0:02:59.1]} 6. Be3 {[%clk 0:02:57.8]} 6... Nf6
{[%clk 0:02:57.7]} 7. f3 {[%clk 0:02:56]} 7... O-O {[%clk 0:02:56.9]} 8. Qd2
{[%clk 0:02:55.8]} 8... d5 {[%clk 0:02:57.1]} 9. Nxc6 {[%clk 0:02:51.3]} 9...
bxc6 {[%clk 0:02:56.6]} 10. O-O-O {[%clk 0:02:52.2]} 10... Be6 {[%clk
0:02:52.3]} 11. e5 {[%clk 0:02:51.1]} 11... Nd7 {[%clk 0:02:47.7]} 12. f4 {[%clk
0:02:51.2]} 12... c5 {[%clk 0:02:42.7]} 13. Nxd5 {[%clk 0:02:50.4]} 13... Qb8
{[%clk 0:02:30.5]} 14. Bc4 {[%clk 0:02:47.5]} 14... Kh8 {[%clk 0:02:26.9]} 15.
h4 {[%clk 0:02:47]} 15... c6 {[%clk 0:02:25]} 16. Nc3 {[%clk 0:02:41.9]} 16...
Bxc4 {[%clk 0:02:23.7]} 17. Qxd7 {[%clk 0:02:41.5]} 17... Qb4 {[%clk 0:02:11.6]}
18. h5 {[%clk 0:02:39]} 18... Rab8 {[%clk 0:01:57.7]} 19. Rd6 {[%clk 0:02:31.2]}
19... Qxb2+ {[%clk 0:01:54.2]} 20. Kd2 {[%clk 0:02:30]} 20... Be6 {[%clk
0:00:54.9]} 21. Qc7 {[%clk 0:02:02.4]} 21... Rbc8 {[%clk 0:00:28.3]} 22. Qa5
{[%clk 0:01:59.2]} 22... Bf5 {[%clk 0:00:26]} 23. Rc1 {[%clk 0:01:54.6]} 23...
Qb4 {[%clk 0:00:18.3]} 24. Qxc5 {[%clk 0:01:53.9]} 24... Qb2 {[%clk 0:00:12.9]}
25. hxg6 {[%clk 0:01:52.4]} 25... fxg6 {[%clk 0:00:11.5]} 26. Ne2 {[%clk
0:01:37.2]} 26... Rfd8 {[%clk 0:00:07.2]} 27. Bd4 {[%clk 0:01:26.5]} 27... Rxd6
{[%clk 0:00:05.5]} 28. Qxd6 {[%clk 0:01:24.1]} 28... Qb7 {[%clk 0:00:02.9]} 29.
g4 {[%clk 0:01:21.3]} 29... c5 {[%clk 0:00:02.8]} 30. Bc3 {[%clk 0:01:19.4]}
30... Bxg4 {[%clk 0:00:02.4]} 31. Rg1 {[%clk 0:01:15.4]} 31... Qf3 {[%clk
0:00:02.1]} 32. Qd3 {[%clk 0:01:13.4]} 32... Qxd3+ {[%clk 0:00:02]} 33. cxd3
{[%clk 0:01:14.3]} 33... Bf5 {[%clk 0:00:01.7]} 34. Ng3 {[%clk 0:01:14.3]} 34...
Rd8 {[%clk 0:00:01.7]} 35. Nxf5 {[%clk 0:01:14.7]} 35... gxf5 {[%clk 0:00:02.6]}
36. Rg5 {[%clk 0:01:15.1]} 36... Bh6 {[%clk 0:00:02.6]} 37. Rxf5 {[%clk
0:01:15]} 37... Kg8 {[%clk 0:00:02.4]} 38. e6 {[%clk 0:01:14.9]} 38... Re8
{[%clk 0:00:02.4]} 39. Rxc5 {[%clk 0:00:56.2]} 39... Rxe6 {[%clk 0:00:02.6]} 40.
Rc4 {[%clk 0:00:53.3]} 40... Re8 {[%clk 0:00:01.8]} 41. Kc2 {[%clk 0:00:51.9]}
41... Rf8 {[%clk 0:00:02.7]} 42. Be5 {[%clk 0:00:51.8]} 42... Bg7 {[%clk
0:00:02.4]} 43. Rc7 {[%clk 0:00:50.7]} 43... Bxe5 {[%clk 0:00:02.3]} 44. fxe5
{[%clk 0:00:51.6]} 44... Re8 {[%clk 0:00:02.8]} 45. d4 {[%clk 0:00:51.7]} 45...
h5 {[%clk 0:00:02.9]} 46. Kd3 {[%clk 0:00:51.8]} 46... h4 {[%clk 0:00:03.1]} 47.
Ke4 {[%clk 0:00:52.3]} 47... Rb8 {[%clk 0:00:02]} 48. Rxa7 {[%clk 0:00:51.2]}
48... h3 {[%clk 0:00:02]} 49. Ra3 {[%clk 0:00:51.7]} 49... h2 {[%clk 0:00:01.5]}
50. Rg3+ {[%clk 0:00:50.7]} 50... Kf7 {[%clk 0:00:01]} 51. Rh3 {[%clk
0:00:51.6]} 51... Rb2 {[%clk 0:00:01.8]} 52. Rh7+ {[%clk 0:00:49.7]} 52... Kg6
{[%clk 0:00:01.7]} 53. Rh3 {[%clk 0:00:49.3]} 53... Kg5 {[%clk 0:00:02.1]} 54.
e6 {[%clk 0:00:49.2]} 54... Kg4 {[%clk 0:00:02.3]} 55. Rh8 {[%clk 0:00:48.6]}
55... Re2+ {[%clk 0:00:01.9]} 56. Kd5 {[%clk 0:00:48.8]} 56... Rxa2 {[%clk
0:00:02.1]} 57. Ke5 {[%clk 0:00:48.5]} 57... Re2+ {[%clk 0:00:02.1]} 58. Kf6
{[%clk 0:00:47.8]} 58... Rf2+ {[%clk 0:00:02.2]} 59. Ke7 {[%clk 0:00:46.7]}
59... Re2 {[%clk 0:00:02.5]} 60. d5 {[%clk 0:00:44.4]} 60... Kf5 {[%clk
0:00:02.7]} 61. Kd7 {[%clk 0:00:42.8]} 61... Rd2 {[%clk 0:00:02.6]} 62. Kd6
{[%clk 0:00:41.6]} 62... Ke4 {[%clk 0:00:01.6]} 63. e7 {[%clk 0:00:41]} 1-0

[Event "*** Titled Tuesday Blitz"]
[Site "Chess.com"]
[Date "2020.10.27"]
[Round "6"]
[White "Zhigalko_Sergei"]
[Black "VitaliyBernadskiy"]
[Result "1/2-1/2"]
[WhiteElo "2901"]
[BlackElo "2757"]
[TimeControl "180+1"]
[EndTime "11:08:05 PDT"]
[Termination "Game drawn by repetition"]

1. e4 {[%clk 0:03:00.9]} 1... g6 {[%clk 0:02:59.7]} 2. d4 {[%clk 0:03:01]} 2...
Bg7 {[%clk 0:03:00.3]} 3. Nc3 {[%clk 0:03:01.4]} 3... a6 {[%clk 0:03:00.8]} 4.
Nf3 {[%clk 0:03:01.2]} 4... b5 {[%clk 0:02:59.1]} 5. a4 {[%clk 0:03:01.8]} 5...
b4 {[%clk 0:02:59.4]} 6. Ne2 {[%clk 0:03:02.3]} 6... a5 {[%clk 0:02:56.9]} 7.
Ng3 {[%clk 0:03:01.6]} 7... e6 {[%clk 0:02:56.9]} 8. Bd3 {[%clk 0:03:02]} 8...
Ba6 {[%clk 0:02:56.2]} 9. O-O {[%clk 0:03:01.3]} 9... Ne7 {[%clk 0:02:55.8]} 10.
Re1 {[%clk 0:03:00]} 10... O-O {[%clk 0:02:51.1]} 11. Be3 {[%clk 0:02:56]} 11...
d6 {[%clk 0:02:46.7]} 12. Qd2 {[%clk 0:02:54.5]} 12... Bxd3 {[%clk 0:02:45.2]}
13. cxd3 {[%clk 0:02:54.6]} 13... Nd7 {[%clk 0:02:41.4]} 14. Bh6 {[%clk
0:02:54.1]} 14... c5 {[%clk 0:02:35.9]} 15. Bxg7 {[%clk 0:02:53.8]} 15... Kxg7
{[%clk 0:02:35.5]} 16. Rac1 {[%clk 0:02:49.3]} 16... Rc8 {[%clk 0:02:32.2]} 17.
h4 {[%clk 0:02:40.2]} 17... cxd4 {[%clk 0:02:17.8]} 18. Nxd4 {[%clk 0:02:31.7]}
18... Qb6 {[%clk 0:02:17.3]} 19. Nf3 {[%clk 0:01:58.2]} 19... Nc5 {[%clk
0:02:17.1]} 20. b3 {[%clk 0:01:38.7]} 20... f6 {[%clk 0:02:02.1]} 21. Qe3 {[%clk
0:01:14]} 21... e5 {[%clk 0:01:53.2]} 22. d4 {[%clk 0:01:13]} 22... Ne6 {[%clk
0:01:51.2]} 23. Ne2 {[%clk 0:00:41.5]} 23... Qb7 {[%clk 0:01:36.2]} 24. Red1
{[%clk 0:00:37.2]} 24... Rxc1 {[%clk 0:01:35.1]} 25. Rxc1 {[%clk 0:00:34.9]}
25... Rc8 {[%clk 0:01:35.6]} 26. h5 {[%clk 0:00:31.9]} 26... Rxc1+ {[%clk
0:01:34.3]} 27. Nxc1 {[%clk 0:00:29.1]} 27... Qc7 {[%clk 0:01:27]} 28. Ne2
{[%clk 0:00:24.1]} 28... Qc2 {[%clk 0:01:25.8]} 29. dxe5 {[%clk 0:00:19]} 29...
dxe5 {[%clk 0:01:26.7]} 30. Ng3 {[%clk 0:00:12.6]} 30... Nc5 {[%clk 0:01:11.6]}
31. h6+ {[%clk 0:00:09.9]} 31... Kf7 {[%clk 0:01:10.9]} 32. Nd2 {[%clk
0:00:10.6]} 32... Nc6 {[%clk 0:01:04]} 33. Ne2 {[%clk 0:00:09.7]} 33... g5
{[%clk 0:00:47.8]} 34. Kh2 {[%clk 0:00:08.4]} 34... Kg6 {[%clk 0:00:47.3]} 35.
Nc4 {[%clk 0:00:03.8]} 35... Nxb3 {[%clk 0:00:41.7]} 36. Qf3 {[%clk 0:00:04.3]}
36... Ncd4 {[%clk 0:00:31.4]} 37. Nxe5+ {[%clk 0:00:02]} 37... fxe5 {[%clk
0:00:31]} 38. Qf8 {[%clk 0:00:02.6]} 38... Qxe2 {[%clk 0:00:12.3]} 39. Qg7+
{[%clk 0:00:02.4]} 39... Kh5 {[%clk 0:00:12.6]} 40. Qxh7 {[%clk 0:00:02.9]}
40... Nf3+ {[%clk 0:00:11.7]} 41. gxf3 {[%clk 0:00:02.7]} 41... Qxf2+ {[%clk
0:00:11.8]} 42. Kh1 {[%clk 0:00:03.4]} 42... Qxf3+ {[%clk 0:00:12.2]} 43. Kh2
{[%clk 0:00:04.1]} 43... Qf2+ {[%clk 0:00:11.7]} 44. Kh1 {[%clk 0:00:04.2]}
44... Qh4+ {[%clk 0:00:11.1]} 45. Kg1 {[%clk 0:00:03.7]} 45... Qg4+ {[%clk
0:00:11.5]} 46. Kh1 {[%clk 0:00:04.1]} 46... Nd4 {[%clk 0:00:10.4]} 47. Qf7+
{[%clk 0:00:04]} 47... Kh4 {[%clk 0:00:10.8]} 48. Qf2+ {[%clk 0:00:04.4]} 48...
Kh5 {[%clk 0:00:08]} 49. h7 {[%clk 0:00:03.6]} 49... Qd1+ {[%clk 0:00:04.8]} 50.
Kg2 {[%clk 0:00:03.7]} 50... Qg4+ {[%clk 0:00:02.5]} 51. Kh1 {[%clk 0:00:04]}
51... Qxe4+ {[%clk 0:00:02.4]} 52. Qg2 {[%clk 0:00:02.8]} 52... Qb1+ {[%clk
0:00:01.8]} 53. Qg1 {[%clk 0:00:02.1]} 53... Qe4+ {[%clk 0:00:02]} 54. Qg2
{[%clk 0:00:02.3]} 54... Qb1+ {[%clk 0:00:02.5]} 55. Qg1 {[%clk 0:00:02.7]}
55... Qe4+ {[%clk 0:00:03.2]} 56. Qg2 {[%clk 0:00:03.3]} 1/2-1/2